Workbook

Sheet Simple Setup
J2: Maximum airspeed (mi/hr) | K2: 85 | O2: Servo Torque Required for Various Intermediate Surface Deflections | AA2: This spreadsheet predicts required servo torques using the following assumptions:
R3: Airspeed (mi/hr): | S3: =T3-0.125*$Y$3 -> 21.25 | T3: 31.875 | U3: 42.5 | V3: 53.125 | W3: 63.75 | X3: 74.375 | Y3: =$K$2 -> 85 | AA3: 1 The angle of attack of the wing, stab, or fuse is zero (relative to the airflow).*
K4: Aileron(s) | L4: Elevator(s) | M4: Rudder | P4: Surface | Q4: Servo | AA4: 2 Angular velocity and acceleration of the aircraft is zero.
J5: Average control surface chord (cm) | K5: =RCCD_All_Star!B3*2.54 -> 4.445 | L5: =RCCD_All_Star!C3*2.54 -> 6.35 | M5: =RCCD_All_Star!D3*2.54 -> 7.62 | P5: Angle | Q5: Angle | S5: Required Servo Torque (oz-in) | AA5: 3 Air flow may be modelled using the concept of dynamic pressure.
J6: Average control surface length (cm) | K6: =RCCD_All_Star!B4*2.54 -> 83.82 | L6: =RCCD_All_Star!C4*2.54 -> 55.88 | M6: =RCCD_All_Star!D4*2.54 -> 25.4 | O6: Aileron(s) | P6: =$K$9 -> 25 | Q6: =ASIN(SIN($P6*PI()/180)*SIN($K$8*PI()/180)/SIN($K$9*PI()/180))*180/PI() -> 35 | S6: =1.7*10^-5*$K$5^2*$K$6*S$3^2*TAN($P6*PI()/180)*SIN($P6*PI()/180)/TAN($Q6*PI()/180)/2 -> 1.789048058 | T6: 4.025358131 | U6: 7.156192234 | V6: 11.18155037 | W6: 16.10143253 | X6: 21.91583872 | Y6: 28.62476893 | AA6: 4 Conditions are: sea level, zero humidity, moderate (~55 F) temperature.
J7: Optional: Maximum available servo torque (oz-in) | K7: 69 | L7: 69 | M7: 120 | P7: =P6-0.15*$P$6 -> 21.25 | Q7: 29.46553903 | S7: 1.585782383 | T7: 3.568010363 | U7: 6.343129534 | V7: 9.911139896 | W7: 14.27204145 | X7: 19.4258342 | Y7: 25.37251813 | AA7: 5 Control linkages have zero offset at hingeline and are perpendicular to horns at neutral.**
J8: Maximum deflection of servo arm from center (degrees) | K8: 35 | L8: 35 | M8: 50 | P8: 17.5 | Q8: 24.08661192 | S8: 1.348169551 | T8: 3.03338149 | U8: 5.392678204 | V8: 8.426059693 | W8: 12.13352596 | X8: 16.515077 | Y8: 21.57071281 | AA8: 6 Control mechanisms are frictionless and surfaces are mass-balanced.
J9: Maximum deflection of control surface from center (degrees) | K9: 25 | L9: 25 | M9: 35 | P9: 13.75 | Q9: 18.8194294 | S9: 1.084813503 | T9: 2.440830382 | U9: 4.339254012 | V9: 6.780084394 | W9: 9.763321527 | X9: 13.28896541 | Y9: 17.35701605 | AA9: 7 The wing, stab, fuse, and control surfaces are thin, flat slabs.
P10: 10 | Q10: 13.63140724 | S10: 0.8025921129 | T10: 1.805832254 | U10: 3.210368452 | V10: 5.016200706 | W10: 7.223329016 | X10: 9.831753383 | Y10: 12.84147381 | AA10: 8 No aerodynamic counterbalances are used. (Account for these manually, if desired.)
J11: Maximum required torque at maximum airspeed (oz-in) | K11: =MAX(Y6:Y12) -> 28.62476893 | L11: =MAX(Y13:Y19) -> 38.94526386 | M11: =MAX(Y20:Y26) -> 30.52333969 | P11: 6.25 | Q11: 8.496781084 | S11: 0.5073137114 | T11: 1.141455851 | U11: 2.029254846 | V11: 3.170710696 | W11: 4.565823403 | X11: 6.214592965 | Y11: 8.117019382 | AA11: 9 The pushrods are significantly longer than the servo and control horns.*
P12: 2.5 | Q12: 3.393901532 | S12: 0.2041341607 | T12: 0.4593018615 | U12: 0.8165366427 | V12: 1.275838504 | W12: 1.837207446 | X12: 2.500643468 | Y12: 3.266146571 | AA12: * This assumption dropped in "ServoPlus" worksheet.
O13: Elevator(s) | P13: =$L$9 -> 25 | Q13: =ASIN(SIN($P13*PI()/180)*SIN($L$8*PI()/180)/SIN($L$9*PI()/180))*180/PI() -> 35 | S13: =1.7*10^-5*$L$5^2*$L$6*S$3^2*TAN($P13*PI()/180)*SIN($P13*PI()/180)/TAN($Q13*PI()/180)/2 -> 2.434078991 | T13: 5.47667773 | U13: 9.736315964 | V13: 15.21299369 | W13: 21.90671092 | X13: 29.81746764 | Y13: 38.94526386 | AA13: ** This assumption dropped in "Offset & Differential" and "ServoPlus" worksheets.
P14: =P13-0.15*$P$13 -> 21.25 | Q14: 29.46553903 | S14: 2.157527052 | T14: 4.854435868 | U14: 8.630108209 | V14: 13.48454408 | W14: 19.41774347 | X14: 26.42970639 | Y14: 34.52043284
P15: 17.5 | Q15: 24.08661192 | S15: 1.834244287 | T15: 4.127049646 | U15: 7.336977148 | V15: 11.46402679 | W15: 16.50819858 | X15: 22.46949252 | Y15: 29.34790859 | AA15: Please note:
P16: 13.75 | Q16: 18.8194294 | S16: 1.475936739 | T16: 3.320857662 | U16: 5.903746955 | V16: 9.224604618 | W16: 13.28343065 | X16: 18.08022505 | Y16: 23.61498782 | AA16: The calculations are completely theoretical. No empirical "tweaking" has been done.
P17: 10 | Q17: 13.63140724 | S17: 1.091962058 | T17: 2.456914631 | U17: 4.367848234 | V17: 6.824762865 | W17: 9.827658526 | X17: 13.37653522 | Y17: 17.47139293 | AA17: The assumptions (except #6) should generally yield conservative (high) predicted torques.
P18: 6.25 | Q18: 8.496781084 | S18: 0.6902227366 | T18: 1.553001157 | U18: 2.760890946 | V18: 4.313892104 | W18: 6.212004629 | X18: 8.455228523 | Y18: 11.04356379 | AA18: Extreme control throws are probably not practical at high speeds.
P19: 2.5 | Q19: 3.393901532 | S19: 0.2777335519 | T19: 0.6249004919 | U19: 1.110934208 | V19: 1.7358347 | W19: 2.499601967 | X19: 3.402236011 | Y19: 4.443736831 | AA19: This model is best used for comparisons. No guarantees are made of its validity.
O20: Rudder | P20: =$M$9 -> 35 | Q20: =ASIN(SIN($P20*PI()/180)*SIN($M$8*PI()/180)/SIN($M$9*PI()/180))*180/PI() -> 50 | S20: =1.7*10^-5*$M$5^2*$M$6*S$3^2*TAN($P20*PI()/180)*SIN($P20*PI()/180)/TAN($Q20*PI()/180)/2 -> 1.907708731 | T20: 4.292344644 | U20: 7.630834923 | V20: 11.92317957 | W20: 17.16937858 | X20: 23.36943195 | Y20: 30.52333969 | AA20: Maximum required servo torque may occur at LESS than maximum throw.
P21: =P20-0.15*$P$20 -> 29.75 | Q21: 41.50808962 | S21: 1.814143718 | T21: 4.081823367 | U21: 7.256574874 | V21: 11.33839824 | W21: 16.32729347 | X21: 22.22326055 | Y21: 29.0262995
P22: 24.5 | Q22: 33.63131955 | S22: 1.608303309 | T22: 3.618682446 | U22: 6.433213238 | V22: 10.05189568 | W22: 14.47472978 | X22: 19.70171554 | Y22: 25.73285295 | AA22: The mathematical model: t = (AMPC2LV2) / (4RT) where
P23: 19.25 | Q23: 26.12435695 | S23: 1.32895613 | T23: 2.990151292 | U23: 5.31582452 | V23: 8.305975812 | W23: 11.96060517 | X23: 16.27971259 | Y23: 21.26329808 | AA23: t = servo torque
P24: 14 | Q24: 18.85054355 | S24: 1.000109 | T24: 2.25024525 | U24: 4.000436001 | V24: 6.250681251 | W24: 9.000981002 | X24: 12.25133525 | Y24: 16.001744 | AA24: A = sin(S) * tan(S) / tan(s)
P25: 8.75 | Q25: 11.72236803 | S25: 0.6387697245 | T25: 1.43723188 | U25: 2.555078898 | V25: 3.992310778 | W25: 5.74892752 | X25: 7.824929125 | Y25: 10.22031559 | AA25: S = control surface angle from neutral
P26: 3.5 | Q26: 4.676736864 | S26: 0.2583779846 | T26: 0.5813504654 | U26: 1.033511938 | V26: 1.614862404 | W26: 2.325401862 | X26: 3.165130312 | Y26: 4.134047754 | AA26: s = servo arm angle from neutral
O27: stalled servo: required torque exceeds available torque | AA27: M = molecular weight of air (~28.6 g/mol)
AA28: P = air pressure (1 atm)
AA29: C = average chord length of control surface
AA30: L = average length of control surface
AA31: V = airspeed
AA32: T = air temperature (~290 K)
AA33: R = ideal gas constant (82.056 atm cm3 / mol K)
AA35: Feel free to share this spreadsheet and model with other individuals for nonprofit use.
AA36: Just be sure to give proper credit to its creator.

Sheet Offset & Differential
G2: Maximum airspeed (mi/hr) | H2: 80 | P2: Servo Torque Required for Up/Right (+) Surface Deflections | AB2: Servo Torque Required for Down/Left (-) Surface Deflections | AN2: Data for Control Geometry Plots | AV2: Data for Control Deflection Plots
H3: Aileron(s) | I3: Elevator(s) | J3: Rudder | S3: Airspeed (mi/hr): | T3: =U3-0.1*$AL$3 -> 32 | U3: 40 | V3: 48 | W3: 56 | X3: 64 | Y3: 72 | Z3: =$H$2 -> 80 | AE3: Airspeed (mi/hr): | AF3: =AG3-0.1*$AL$3 -> 32 | AG3: 40 | AH3: 48 | AI3: 56 | AJ3: 64 | AK3: 72 | AL3: =$H$2 -> 80 | AO3: HLx | AP3: HLy | AQ3: P | AR3: Hc | AS3: L | AW3: Pos | AX3: Pos | AY3: Neg | AZ3: Neg
G4: Average control surface chord (cm) | H4: 7 | I4: 13 | J4: 18 | Q4: Surface | R4: Servo | AC4: Surface | AD4: Servo | AO4: 14 | AP4: 7 | AQ4: 10 | AR4: 2.5 | AS4: 5 | AW4: TE def. | AX4: Servo | AY4: TE def. | AZ4: Servo
G5: Average control surface length (cm) | H5: 75 | I5: 30 | J5: 35 | Q5: Angle | R5: Angle | T5: Required Servo Torque (oz-in) | AC5: Angle | AD5: Angle | AF5: Required Servo Torque (oz-in) | AW5: (cm) | AX5: (%) | AY5: (cm) | AZ5: (%)
G6: Optional: Maximum available servo torque (oz-in) | H6: 30 | I6: 60 | J6: 110 | P6: Aileron(s) | Q6: =$H$9 -> 25 | R6: =-$H$17+DEGREES(ASIN((SIN(RADIANS(90-$H$16+Q6))-SIN(RADIANS(90-$H$16)))/((SIN(RADIANS(90-$H$16+$H$9))-SIN(RADIANS(90-$H$16)))/(SIN(RADIANS($H$17+$H$7-90))-SIN(RADIANS($H$17-90))))+SIN(RADIANS($H$17-90))))+90 -> 60 | T6: =0.0000085*($H$4^2*$H$5*T$3^2*SIN(RADIANS($Q6))*(COS(RADIANS($H$17+$R6-90))/COS(RADIANS(90-$H$16+$Q6)))*(SIN(RADIANS(90-$H$16+$Q6))-SIN(RADIANS(90-$H$16)))/(SIN(RADIANS($H$17+$R6-90))-SIN(RADIANS($H$17-90)))) -> 4.420249935 | U6: 6.906640523 | V6: 9.945562354 | W6: 13.53701543 | X6: 17.68099974 | Y6: 22.3775153 | Z6: 27.62656209 | AB6: Aileron(s) | AC6: =$H$10 -> 15 | AD6: =$H$17-DEGREES(ASIN((SIN(RADIANS(90-$H$16+-AC6))-SIN(RADIANS(90-$H$16)))/((SIN(RADIANS(90-$H$16+$H$9))-SIN(RADIANS(90-$H$16)))/(SIN(RADIANS($H$17+$H$7-90))-SIN(RADIANS($H$17-90))))+SIN(RADIANS($H$17-90))))-90 -> 40 | AF6: =0.0000085*($H$4^2*$H$5*AF$3^2*SIN(RADIANS($AC6))*(COS(RADIANS($H$17+-$AD6-90))/COS(RADIANS(90-$H$16+-$AC6)))*(SIN(RADIANS(90-$H$16+-$AC6))-SIN(RADIANS(90-$H$16)))/(SIN(RADIANS($H$17+-$AD6-90))-SIN(RADIANS($H$17-90)))) -> 2.360853667 | AG6: 3.688833855 | AH6: 5.311920751 | AI6: 7.230114355 | AJ6: 9.443414668 | AK6: 11.95182169 | AL6: 14.75533542 | AO6: Ax | AP6: Ex | AQ6: Rx | AR6: Ay | AS6: Ey | AT6: Ry | AV6: Ail | AW6: =$H$4*SIN(RADIANS($Q6)) -> 2.958327832 | AX6: =100*$R6/$R$6 -> 100 | AY6: =$H$4*SIN(RADIANS($AC6)) -> 1.811733316 | AZ6: =100*$AD6/$AD$6 -> 100
G7: Maximum up/right (+) rotation of servo arm (degrees) | H7: 60 | I7: 50 | J7: 60 | Q7: =Q6-0.13*$Q$6 -> 21.75 | R7: 50.73195376 | T7: 4.414730038 | U7: 6.898015684 | V7: 9.933142585 | W7: 13.52011074 | X7: 17.65892015 | Y7: 22.34957082 | Z7: 27.59206273 | AC7: =AC6-0.13*$AC$6 -> 13.05 | AD7: 33.57512111 | AF7: 2.319366446 | AG7: 3.624010072 | AH7: 5.218574504 | AI7: 7.103059741 | AJ7: 9.277465785 | AK7: 11.74179263 | AL7: 14.49604029 | AN7: Hs | AO7: =((SIN(RADIANS(90-H16+H9))-SIN(RADIANS(90-H16)))/(SIN(RADIANS(H17+H7-90))-SIN(RADIANS(H17-90))))*$AR$4 -> 1.112464242 | AP7: =((SIN(RADIANS(90-I16+I9))-SIN(RADIANS(90-I16)))/(SIN(RADIANS(I17+I7-90))-SIN(RADIANS(I17-90))))*$AR$4 -> 1.379222185 | AQ7: =((SIN(RADIANS(90-J16+J9))-SIN(RADIANS(90-J16)))/(SIN(RADIANS(J17+J7-90))-SIN(RADIANS(J17-90))))*$AR$4 -> 1.325297185 | AR7: =AO7 -> 1.112464242 | AS7: =AP7 -> 1.379222185 | AT7: =AQ7 -> 1.325297185 | AW7: 2.593902063 | AX7: 84.55325626 | AY7: 1.580608868 | AZ7: 83.93780276
G8: Maximum down/left (-) rotation of servo arm (degrees) | H8: =100-H7 -> 40 | I8: 50 | J8: 60 | Q8: 18.5 | R8: 42.37466863 | T8: 4.098581168 | U8: 6.404033074 | V8: 9.221807627 | W8: 12.55190483 | X8: 16.39432467 | Y8: 20.74906716 | Z8: 25.6161323 | AC8: 11.1 | AD8: 27.76741598 | AF8: 2.154074679 | AG8: 3.365741686 | AH8: 4.846668028 | AI8: 6.596853705 | AJ8: 8.616298716 | AK8: 10.90500306 | AL8: 13.46296674 | AN8: Neutral | AW8: 2.221132595 | AX8: 70.62444772 | AY8: 1.347653766 | AZ8: 69.41853995
G9: Maximum up/right (+) rotation of control surface (degrees) | H9: 25 | I9: 25 | J9: 30 | Q9: 15.25 | R9: 34.5460591 | T9: 3.577647924 | U9: 5.590074882 | V9: 8.04970783 | W9: 10.95654677 | X9: 14.3105917 | Y9: 18.11184262 | Z9: 22.36029953 | AC9: 9.15 | AD9: 22.37622386 | AF9: 1.897706069 | AG9: 2.965165732 | AH9: 4.269838655 | AI9: 5.811724836 | AJ9: 7.590824275 | AK9: 9.607136973 | AL9: 11.86066293 | AN9: SC | AO9: =$AO$4+$AR$4*SIN(RADIANS(H$13-H$16))-$AQ$4*SIN(RADIANS(H$13))+AO$7*COS(RADIANS(-90+H$17+H$13)) -> 4.226667163 | AP9: =$AO$4+$AR$4*SIN(RADIANS(I$13-I$16))-$AQ$4*SIN(RADIANS(I$13))+AP$7*COS(RADIANS(-90+I$17+I$13)) -> 4.569315304 | AQ9: =$AO$4+$AR$4*SIN(RADIANS(J$13-J$16))-$AQ$4*SIN(RADIANS(J$13))+AQ$7*COS(RADIANS(-90+J$17+J$13)) -> 4.818457684 | AR9: =$AP$4-$AR$4*COS(RADIANS(H$13-H$16))+$AQ$4*COS(RADIANS(H$13))+AR$7*SIN(RADIANS(-90+H$17+H$13)) -> 5.589127489 | AS9: =$AP$4-$AR$4*COS(RADIANS(I$13-I$16))+$AQ$4*COS(RADIANS(I$13))+AS$7*SIN(RADIANS(-90+I$17+I$13)) -> 3.493577779 | AT9: =$AP$4-$AR$4*COS(RADIANS(J$13-J$16))+$AQ$4*COS(RADIANS(J$13))+AT$7*SIN(RADIANS(-90+J$17+J$13)) -> 6.054926471 | AW9: 1.841218501 | AX9: 57.57676516 | AY9: 1.113137816 | AZ9: 55.94055965
G10: Maximum down/left (-) rotation of control surface (degrees) | H10: 15 | I10: 25 | J10: 30 | Q10: 12 | R10: 27.03312335 | T10: 2.918591096 | U10: 4.560298588 | V10: 6.566829966 | W10: 8.938185232 | X10: 11.67436438 | Y10: 14.77536742 | Z10: 18.24119435 | AC10: 7.2 | AD10: 17.28280744 | AF10: 1.572102045 | AG10: 2.456409445 | AH10: 3.537229601 | AI10: 4.814562513 | AJ10: 6.28840818 | AK10: 7.958766602 | AL10: 9.825637781 | AN10: SA | AO10: =$AO$4+$AR$4*SIN(RADIANS(H$13-H$16))-$AQ$4*SIN(RADIANS(H$13)) -> 4 | AP10: =$AO$4+$AR$4*SIN(RADIANS(I$13-I$16))-$AQ$4*SIN(RADIANS(I$13)) -> 4.9033818 | AQ10: =$AO$4+$AR$4*SIN(RADIANS(J$13-J$16))-$AQ$4*SIN(RADIANS(J$13)) -> 5.118033989 | AR10: =$AP$4-$AR$4*COS(RADIANS(H$13-H$16))+$AQ$4*COS(RADIANS(H$13)) -> 4.5 | AS10: =$AP$4-$AR$4*COS(RADIANS(I$13-I$16))+$AQ$4*COS(RADIANS(I$13)) -> 2.155424794 | AT10: =$AP$4-$AR$4*COS(RADIANS(J$13-J$16))+$AQ$4*COS(RADIANS(J$13)) -> 4.763932023 | AW10: 1.455381836 | AX10: 45.05520559 | AY10: 0.877332635 | AZ10: 43.20701859
G11: Optional: Control horn distance behind hingeline (D in figure, cm) | I11: 1 | J11: 2 | Q11: 8.75 | R11: 19.69490627 | T11: 2.169804171 | U11: 3.390319018 | V11: 4.882059385 | W11: 6.645025275 | X11: 8.679216685 | Y11: 10.98463362 | Z11: 13.56127607 | AC11: 5.25 | AD11: 12.40945668 | AF11: 1.193286686 | AG11: 1.864510447 | AH11: 2.684895044 | AI11: 3.654440476 | AJ11: 4.773146744 | AK11: 6.041013848 | AL11: 7.458041788 | AN11: CA | AO11: =$AO$4+$AR$4*SIN(RADIANS(H$13-H$16)) -> 14 | AP11: 14.60633906 | AQ11: 15.11803399 | AR11: =$AP$4-$AR$4*COS(RADIANS(H$13-H$16)) -> 4.5 | AS11: =$AP$4-$AR$4*COS(RADIANS(I$13-I$16)) -> 4.57464375 | AT11: =$AP$4-$AR$4*COS(RADIANS(J$13-J$16)) -> 4.763932023 | AW11: 1.064863703 | AX11: 32.82484379 | AY11: 0.6405113306 | AZ11: 31.0236417
G12: Optional: Control linkage distance from chordline (H in figure, cm) | I12: 4 | J12: 4 | Q12: 5.5 | R12: 12.42331227 | T12: 1.370470704 | U12: 2.141360476 | V12: 3.083559085 | W12: 4.197066532 | X12: 5.481882818 | Y12: 6.938007941 | Z12: 8.565441903 | AC12: 3.3 | AD12: 7.701411583 | AF12: 0.7738444184 | AG12: 1.209131904 | AH12: 1.741149941 | AI12: 2.369898531 | AJ12: 3.095377674 | AK12: 3.917587368 | AL12: 4.836527615 | AN12: CH | AO12: 14 | AP12: 14.60633906 | AQ12: 15.11803399 | AR12: =$AP$4 -> 7 | AS12: 7 | AT12: 7 | AW12: 0.6709202676 | AX12: 20.70552045 | AY12: 0.4029481887 | AZ12: 19.25352896
G13: Pushrod to control horn angle (A in figure, default 90 degrees) | H13: 90 | I13: 104 | J13: 90 | Q13: 2.25 | R13: 5.122553298 | T13: 0.5555049267 | U13: 0.8679764479 | V13: 1.249886085 | W13: 1.701233838 | X13: 2.222019707 | Y13: 2.812243691 | Z13: 3.471905792 | AC13: 1.35 | AD13: 3.117711456 | AF13: 0.3241992364 | AG13: 0.5065613068 | AH13: 0.7294482818 | AI13: 0.9928601614 | AJ13: 1.296796945 | AK13: 1.641258634 | AL13: 2.026245227 | AN13: HL | AO13: =$AO$4 -> 14 | AP13: =$AO$4 -> 14 | AQ13: =$AO$4 -> 14 | AR13: 7 | AS13: 7 | AT13: 7 | AW13: 0.2748187103 | AX13: 8.53758883 | AY13: 0.1649183538 | AZ13: 7.79427864
P14: Elevator(s) | Q14: =$I$9 -> 25 | R14: =-$I$17+DEGREES(ASIN((SIN(RADIANS(90-$I$16+Q14))-SIN(RADIANS(90-$I$16)))/((SIN(RADIANS(90-$I$16+$I$9))-SIN(RADIANS(90-$I$16)))/(SIN(RADIANS($I$17+$I$7-90))-SIN(RADIANS($I$17-90))))+SIN(RADIANS($I$17-90))))+90 -> 50 | T14: =0.0000085*($I$4^2*$I$5*T$3^2*SIN(RADIANS($Q14))*(COS(RADIANS($I$17+$R14-90))/COS(RADIANS(90-$I$16+$Q14)))*(SIN(RADIANS(90-$I$16+$Q14))-SIN(RADIANS(90-$I$16)))/(SIN(RADIANS($I$17+$R14-90))-SIN(RADIANS($I$17-90)))) -> 7.296819788 | U14: 11.40128092 | V14: 16.41784452 | W14: 22.3465106 | X14: 29.18727915 | Y14: 36.94015018 | Z14: 45.60512368 | AB14: Elevator(s) | AC14: =$I$10 -> 25 | AD14: =$I$17-DEGREES(ASIN((SIN(RADIANS(90-$I$16+-AC14))-SIN(RADIANS(90-$I$16)))/((SIN(RADIANS(90-$I$16+$I$9))-SIN(RADIANS(90-$I$16)))/(SIN(RADIANS($I$17+$I$7-90))-SIN(RADIANS($I$17-90))))+SIN(RADIANS($I$17-90))))-90 -> 50 | AF14: =0.0000085*($I$4^2*$I$5*AF$3^2*SIN(RADIANS($AC14))*(COS(RADIANS($I$17+-$AD14-90))/COS(RADIANS(90-$I$16+-$AC14)))*(SIN(RADIANS(90-$I$16+-$AC14))-SIN(RADIANS(90-$I$16)))/(SIN(RADIANS($I$17+-$AD14-90))-SIN(RADIANS($I$17-90)))) -> 7.297745603 | AG14: 11.4027275 | AH14: 16.41992761 | AI14: 22.34934591 | AJ14: 29.19098241 | AK14: 36.94483712 | AL14: 45.61091002 | AN14: TE | AO14: =AO$13+$AS$4 -> 19 | AP14: =AP$13+$AS$4 -> 19 | AQ14: =AQ$13+$AS$4 -> 19 | AR14: =AR$13 -> 7 | AS14: =AS$13 -> 7 | AT14: =AT$13 -> 7 | AV14: Elev | AW14: =$I$4*SIN(RADIANS($Q14)) -> 5.494037403 | AX14: =100*$R14/$R$14 -> 100 | AY14: =$I$4*SIN(RADIANS($AC14)) -> 5.494037403 | AZ14: =100*$AD14/$AD$14 -> 100
G15: Maximum required torque at maximum airspeed (oz-in) | H15: =MAX(Z6:Z13,AL6:AL13) -> 27.62656209 | I15: =MAX(Z14:Z21,AL14:AL21) -> 45.61091002 | J15: =MAX(Z22:Z29,AL22:AL29) -> 114.8578114 | Q15: =Q14-0.13*$Q$14 -> 21.75 | R15: 42.19643487 | T15: 7.195638736 | U15: 11.24318552 | V15: 16.19018715 | W15: 22.03664363 | X15: 28.78255494 | Y15: 36.4279211 | Z15: 44.9727421 | AC15: =AC14-0.13*$AC$14 -> 21.75 | AD15: 42.1970054 | AF15: 7.195865821 | AG15: 11.24354035 | AH15: 16.1906981 | AI15: 22.03733908 | AJ15: 28.78346329 | AK15: 36.42907072 | AL15: 44.97416138 | AN15: Pos | AW15: 4.817246688 | AX15: 84.39286975 | AY15: 4.817246688 | AZ15: 84.39401081
G16: Virtual pushrod to control horn angle at neutral (degrees) | H16: =H13-IF(H12=0,0,DEGREES(ATAN(H11/H12))) -> 90 | I16: =I13-IF(I12=0,0,DEGREES(ATAN(I11/I12))) -> 89.96375653 | J16: =J13-IF(J12=0,0,DEGREES(ATAN(J11/J12))) -> 63.43494882 | N16: Hint: see sample optimization routine below | Q16: 18.5 | R16: 35.10991538 | T16: 6.663786011 | U16: 10.41216564 | V16: 14.99351852 | W16: 20.40784466 | X16: 26.65514404 | Y16: 33.73541668 | Z16: 41.64866257 | AC16: 18.5 | AD16: 35.1105502 | AF16: 6.663731288 | AG16: 10.41208014 | AH16: 14.9933954 | AI16: 20.40767707 | AJ16: 26.65492515 | AK16: 33.73513964 | AL16: 41.64832055 | AN16: SC | AO16: =$AO$4+$AR$4*SIN(RADIANS(H$13-H$16))-$AQ$4*SIN(RADIANS(H$13))+AO$7*COS(RADIANS(-90+H$17+H$13)) -> 4.226667163 | AP16: =$AO$4+$AR$4*SIN(RADIANS(I$13-I$16))-$AQ$4*SIN(RADIANS(I$13))+AP$7*COS(RADIANS(-90+I$17+I$13)) -> 4.569315304 | AQ16: =$AO$4+$AR$4*SIN(RADIANS(J$13-J$16))-$AQ$4*SIN(RADIANS(J$13))+AQ$7*COS(RADIANS(-90+J$17+J$13)) -> 4.818457684 | AR16: =$AP$4-$AR$4*COS(RADIANS(H$13-H$16))+$AQ$4*COS(RADIANS(H$13))+AR$7*SIN(RADIANS(-90+H$17+H$13)) -> 5.589127489 | AS16: =$AP$4-$AR$4*COS(RADIANS(I$13-I$16))+$AQ$4*COS(RADIANS(I$13))+AS$7*SIN(RADIANS(-90+I$17+I$13)) -> 3.493577779 | AT16: =$AP$4-$AR$4*COS(RADIANS(J$13-J$16))+$AQ$4*COS(RADIANS(J$13))+AT$7*SIN(RADIANS(-90+J$17+J$13)) -> 6.054926471 | AW16: 4.124960533 | AX16: 70.21983075 | AY16: 4.124960533 | AZ16: 70.22110039
G17: Required pushrod to servo arm angle at neutral (degrees) | H17: =DEGREES(ATAN((((SIN(RADIANS(90-H16-H10))-SIN(RADIANS(90-H16)))*SIN(RADIANS(H7)))-((SIN(RADIANS(90-H16+H9))-SIN(RADIANS(90-H16)))*SIN(RADIANS(-H8))))/((SIN(RADIANS(90-H16+H9))-SIN(RADIANS(90-H16)))*(COS(RADIANS(-H8))-1)-(SIN(RADIANS(90-H16-H10))-SIN(RADIANS(90-H16)))*(COS(RADIANS(H7))-1))))+90 -> 78.2435296 | I17: =DEGREES(ATAN((((SIN(RADIANS(90-I16-I10))-SIN(RADIANS(90-I16)))*SIN(RADIANS(I7)))-((SIN(RADIANS(90-I16+I9))-SIN(RADIANS(90-I16)))*SIN(RADIANS(-I8))))/((SIN(RADIANS(90-I16+I9))-SIN(RADIANS(90-I16)))*(COS(RADIANS(-I8))-1)-(SIN(RADIANS(90-I16-I10))-SIN(RADIANS(90-I16)))*(COS(RADIANS(I7))-1))))+90 -> 90.01723108 | J17: =DEGREES(ATAN((((SIN(RADIANS(90-J16-J10))-SIN(RADIANS(90-J16)))*SIN(RADIANS(J7)))-((SIN(RADIANS(90-J16+J9))-SIN(RADIANS(90-J16)))*SIN(RADIANS(-J8))))/((SIN(RADIANS(90-J16+J9))-SIN(RADIANS(90-J16)))*(COS(RADIANS(-J8))-1)-(SIN(RADIANS(90-J16-J10))-SIN(RADIANS(90-J16)))*(COS(RADIANS(J7))-1))))+90 -> 103.0643134 | Q17: 15.25 | R17: 28.47468865 | T17: 5.834498247 | U17: 9.11640351 | V17: 13.12762105 | W17: 17.86815088 | X17: 23.33799299 | Y17: 29.53714737 | Z17: 36.46561404 | AC17: 15.25 | AD17: 28.47520922 | AF17: 5.834360507 | AG17: 9.116188293 | AH17: 13.12731114 | AI17: 17.86772905 | AJ17: 23.33744203 | AK17: 29.53645007 | AL17: 36.46475317 | AN17: SA | AO17: =AO16-AO$7*SIN(RADIANS(180-H$17-H$13-H$7)) -> 5.056545654 | AP17: =AP16-AP$7*SIN(RADIANS(180-I$17-I$13-I$7)) -> 5.809133767 | AQ17: =AQ16-AQ$7*SIN(RADIANS(180-J$17-J$13-J$7)) -> 6.086279825 | AR17: =AR16-AR$7*COS(RADIANS(180-H$17-H$13-H$7)) -> 4.848264223 | AS17: =AS16-AS$7*COS(RADIANS(180-I$17-I$13-I$7)) -> 2.889339403 | AT17: =AT16-AT$7*COS(RADIANS(180-J$17-J$13-J$7)) -> 5.668869937 | AW17: 3.419405788 | AX17: 56.94937731 | AY17: 3.419405788 | AZ17: 56.95041844
G18: Required servo arm length (cm) | H18: =IF(H12=0,"?",((SIN(RADIANS(90-H16+H9))-SIN(RADIANS(90-H16)))/(SIN(RADIANS(H17+H7-90))-SIN(RADIANS(H17-90))))*SQRT(H11^2+H12^2)) -> ? | I18: =IF(I12=0,"?",((SIN(RADIANS(90-I16+I9))-SIN(RADIANS(90-I16)))/(SIN(RADIANS(I17+I7-90))-SIN(RADIANS(I17-90))))*SQRT(I11^2+I12^2)) -> 2.2746715 | J18: =IF(J12=0,"?",((SIN(RADIANS(90-J16+J9))-SIN(RADIANS(90-J16)))/(SIN(RADIANS(J17+J7-90))-SIN(RADIANS(J17-90))))*SQRT(J11^2+J12^2)) -> 2.370763677 | Q18: 12 | R18: 22.13938613 | T18: 4.793341872 | U18: 7.489596675 | V18: 10.78501921 | W18: 14.67960948 | X18: 19.17336749 | Y18: 24.26629323 | Z18: 29.9583867 | AC18: 12 | AD18: 22.13974269 | AF18: 4.793213767 | AG18: 7.489396511 | AH18: 10.78473098 | AI18: 14.67921716 | AJ18: 19.17285507 | AK18: 24.2656447 | AL18: 29.95758604 | AN18: CA | AO18: =$AO$4+$AR$4*SIN(RADIANS(H$13-H$16+H$9)) -> 15.05654565 | AP18: =$AO$4+$AR$4*SIN(RADIANS(I$13-I$16+I$9)) -> 15.57452966 | AQ18: =$AO$4+$AR$4*SIN(RADIANS(J$13-J$16+J$9)) -> 16.08627983 | AR18: =$AP$4-$AR$4*COS(RADIANS(H$13-H$16+H$9)) -> 4.734230532 | AS18: =$AP$4-$AR$4*COS(RADIANS(I$13-I$16+I$9)) -> 5.058130705 | AT18: =$AP$4-$AR$4*COS(RADIANS(J$13-J$16+J$9)) -> 5.622525321 | AW18: 2.702851981 | AX18: 44.27877226 | AY18: 2.702851981 | AZ18: 44.27948537
Q19: 8.75 | R19: 16.00609035 | T19: 3.601923697 | U19: 5.628005777 | V19: 8.104328319 | W19: 11.03089132 | X19: 14.40769479 | Y19: 18.23473872 | Z19: 22.51202311 | AC19: 8.75 | AD19: 16.0062913 | AF19: 3.601840178 | AG19: 5.627875278 | AH19: 8.1041404 | AI19: 11.03063554 | AJ19: 14.40736071 | AK19: 18.2343159 | AL19: 22.51150111 | AN19: CH | AO19: =AO$12+$AR$4*SIN(RADIANS(H$13-H$16))*(COS(RADIANS(H$9))-1) -> 14 | AP19: =AP$12+$AR$4*SIN(RADIANS(I$13-I$16))*(COS(RADIANS(I$9))-1) -> 14.54952981 | AQ19: =AQ$12+$AR$4*SIN(RADIANS(J$13-J$16))*(COS(RADIANS(J$9))-1) -> 14.96824584 | AR19: =AR$12+$AR$4*SIN(RADIANS(H$13-H$16))*SIN(RADIANS(H$9)) -> 7 | AS19: =AS$12+$AR$4*SIN(RADIANS(I$13-I$16))*SIN(RADIANS(I$9)) -> 7.256249961 | AT19: =AT$12+$AR$4*SIN(RADIANS(J$13-J$16))*SIN(RADIANS(J$9)) -> 7.559016994 | AW19: 1.97760402 | AX19: 32.0121807 | AY19: 1.97760402 | AZ19: 32.01258261
Q20: 5.5 | R20: 10.00480687 | T20: 2.308588206 | U20: 3.607169073 | V20: 5.194323465 | W20: 7.070051382 | X20: 9.234352826 | Y20: 11.6872278 | Z20: 14.42867629 | AC20: 5.5 | AD20: 10.00488896 | AF20: 2.308551357 | AG20: 3.607111495 | AH20: 5.194240553 | AI20: 7.06993853 | AJ20: 9.234205427 | AK20: 11.68704124 | AL20: 14.42844598 | AN20: HL | AO20: =$AO$4 -> 14 | AP20: =$AO$4 -> 14 | AQ20: =$AO$4 -> 14 | AR20: =$AP$4 -> 7 | AS20: =$AP$4 -> 7 | AT20: =$AP$4 -> 7 | AW20: 1.245994783 | AX20: 20.00961375 | AY20: 1.245994783 | AZ20: 20.00977791
Q21: 2.25 | R21: 4.080779163 | T21: 0.9541207965 | U21: 1.490813745 | V21: 2.146771792 | W21: 2.921994939 | X21: 3.816483186 | Y21: 4.830236532 | Z21: 5.963254978 | AC21: 2.25 | AD21: 4.080793124 | AF21: 0.9541142962 | AG21: 1.490803588 | AH21: 2.146757166 | AI21: 2.921975032 | AJ21: 3.816457185 | AK21: 4.830203624 | AL21: 5.963214351 | AN21: TE | AO21: =AO$14+$AS$4*(COS(RADIANS(H$9))-1) -> 18.53153894 | AP21: =AP$14+$AS$4*(COS(RADIANS(I$9))-1) -> 18.53153894 | AQ21: =AQ$14+$AS$4*(COS(RADIANS(J$9))-1) -> 18.33012702 | AR21: =AR$14+$AS$4*SIN(RADIANS(H$9)) -> 9.113091309 | AS21: =AS$14+$AS$4*SIN(RADIANS(I$9)) -> 9.113091309 | AT21: =AT$14+$AS$4*SIN(RADIANS(J$9)) -> 9.5 | AW21: 0.5103776049 | AX21: 8.161558325 | AY21: 0.5103776049 | AZ21: 8.161586248
P22: Rudder | Q22: =$J$9 -> 30 | R22: =-$J$17+DEGREES(ASIN((SIN(RADIANS(90-$J$16+Q22))-SIN(RADIANS(90-$J$16)))/((SIN(RADIANS(90-$J$16+$J$9))-SIN(RADIANS(90-$J$16)))/(SIN(RADIANS($J$17+$J$7-90))-SIN(RADIANS($J$17-90))))+SIN(RADIANS($J$17-90))))+90 -> 60 | T22: =0.0000085*($J$4^2*$J$5*T$3^2*SIN(RADIANS($Q22))*(COS(RADIANS($J$17+$R22-90))/COS(RADIANS(90-$J$16+$Q22)))*(SIN(RADIANS(90-$J$16+$Q22))-SIN(RADIANS(90-$J$16)))/(SIN(RADIANS($J$17+$R22-90))-SIN(RADIANS($J$17-90)))) -> 13.83149821 | U22: 21.61171595 | V22: 31.12087096 | W22: 42.35896325 | X22: 55.32599282 | Y22: 70.02195967 | Z22: 86.44686378 | AB22: Rudder | AC22: =$J$10 -> 30 | AD22: =$J$17-DEGREES(ASIN((SIN(RADIANS(90-$J$16+-AC22))-SIN(RADIANS(90-$J$16)))/((SIN(RADIANS(90-$J$16+$J$9))-SIN(RADIANS(90-$J$16)))/(SIN(RADIANS($J$17+$J$7-90))-SIN(RADIANS($J$17-90))))+SIN(RADIANS($J$17-90))))-90 -> 60 | AF22: =0.0000085*($J$4^2*$J$5*AF$3^2*SIN(RADIANS($AC22))*(COS(RADIANS($J$17+-$AD22-90))/COS(RADIANS(90-$J$16+-$AC22)))*(SIN(RADIANS(90-$J$16+-$AC22))-SIN(RADIANS(90-$J$16)))/(SIN(RADIANS($J$17+-$AD22-90))-SIN(RADIANS($J$17-90)))) -> 17.89623372 | AG22: 27.96286519 | AH22: 40.26652587 | AI22: 54.80721577 | AJ22: 71.58493489 | AK22: 90.59968322 | AL22: 111.8514608 | AN22: Neg | AV22: Rud | AW22: =$J$4*SIN(RADIANS($Q22)) -> 9 | AX22: =100*$R22/$R$22 -> 100 | AY22: =$J$4*SIN(RADIANS($AC22)) -> 9 | AZ22: =100*$AD22/$AD$22 -> 100
Q23: =Q22-0.13*$Q$22 -> 26.1 | R23: 48.85600612 | T23: 17.86608061 | U23: 27.91575095 | V23: 40.19868137 | W23: 54.71487186 | X23: 71.46432243 | Y23: 90.44703308 | Z23: 111.6630038 | AC23: =AC22-0.13*$AC$22 -> 26.1 | AD23: 50.09585048 | AF23: 18.37724983 | AG23: 28.71445286 | AH23: 41.34881212 | AI23: 56.2803276 | AJ23: 73.50899932 | AK23: 93.03482726 | AL23: 114.8578114 | AN23: SC | AO23: =$AO$4+$AR$4*SIN(RADIANS(H$13-H$16))-$AQ$4*SIN(RADIANS(H$13))+AO$7*COS(RADIANS(-90+H$17+H$13)) -> 4.226667163 | AP23: =$AO$4+$AR$4*SIN(RADIANS(I$13-I$16))-$AQ$4*SIN(RADIANS(I$13))+AP$7*COS(RADIANS(-90+I$17+I$13)) -> 4.569315304 | AQ23: =$AO$4+$AR$4*SIN(RADIANS(J$13-J$16))-$AQ$4*SIN(RADIANS(J$13))+AQ$7*COS(RADIANS(-90+J$17+J$13)) -> 4.818457684 | AR23: =$AP$4-$AR$4*COS(RADIANS(H$13-H$16))+$AQ$4*COS(RADIANS(H$13))+AR$7*SIN(RADIANS(-90+H$17+H$13)) -> 5.589127489 | AS23: =$AP$4-$AR$4*COS(RADIANS(I$13-I$16))+$AQ$4*COS(RADIANS(I$13))+AS$7*SIN(RADIANS(-90+I$17+I$13)) -> 3.493577779 | AT23: =$AP$4-$AR$4*COS(RADIANS(J$13-J$16))+$AQ$4*COS(RADIANS(J$13))+AT$7*SIN(RADIANS(-90+J$17+J$13)) -> 6.054926471 | AW23: 7.918905057 | AX23: 81.42667686 | AY23: 7.918905057 | AZ23: 83.49308413
Q24: 22.2 | R24: 40.1622359 | T24: 17.95583928 | U24: 28.05599887 | V24: 40.40063838 | W24: 54.98975779 | X24: 71.82335711 | Y24: 90.90143635 | Z24: 112.2239955 | AC24: 22.2 | AD24: 41.35806876 | AF24: 17.45899639 | AG24: 27.27968186 | AH24: 39.28274188 | AI24: 53.46817645 | AJ24: 69.83598557 | AK24: 88.38616923 | AL24: 109.1187274 | AN24: SA | AO24: =AO23-AO$7*SIN(RADIANS(180-H$17-H$13+H$8)) -> 3.352952387 | AP24: =AP23-AP$7*SIN(RADIANS(180-I$17-I$13+I$8)) -> 3.75896445 | AQ24: =AQ23-AQ$7*SIN(RADIANS(180-J$17-J$13+J$8)) -> 3.850211848 | AR24: =AR23-AR$7*COS(RADIANS(180-H$17-H$13+H$8)) -> 4.900506272 | AS24: =AS23-AS$7*COS(RADIANS(180-I$17-I$13+I$8)) -> 2.377519838 | AT24: =AT23-AT$7*COS(RADIANS(180-J$17-J$13+J$8)) -> 5.149988557 | AW24: 6.801134163 | AX24: 66.93705983 | AY24: 6.801134163 | AZ24: 68.9301146
Q25: 18.3 | R25: 32.42778789 | T25: 16.24956141 | U25: 25.38993971 | V25: 36.56151318 | W25: 49.76428183 | X25: 64.99824565 | Y25: 82.26340466 | Z25: 101.5597588 | AC25: 18.3 | AD25: 33.3312833 | AF25: 15.57408997 | AG25: 24.33451559 | AH25: 35.04170244 | AI25: 47.69565055 | AJ25: 62.2963599 | AK25: 78.8438305 | AL25: 97.33806234 | AN25: CA | AO25: =$AO$4+$AR$4*SIN(RADIANS(H$13-H$16-H$10)) -> 13.35295239 | AP25: =$AO$4+$AR$4*SIN(RADIANS(I$13-I$16-I$10)) -> 13.52452997 | AQ25: =$AO$4+$AR$4*SIN(RADIANS(J$13-J$16-J$10)) -> 13.85021185 | AR25: =$AP$4-$AR$4*COS(RADIANS(H$13-H$16-H$10)) -> 4.585185434 | AS25: =$AP$4-$AR$4*COS(RADIANS(I$13-I$16-I$10)) -> 4.545630783 | AT25: =$AP$4-$AR$4*COS(RADIANS(J$13-J$16-J$10)) -> 4.504491333 | AW25: 5.651864207 | AX25: 54.04631314 | AY25: 5.651864207 | AZ25: 55.55213884
Q26: 14.4 | R26: 25.18872739 | T26: 13.53256484 | U26: 21.14463256 | V26: 30.44827089 | W26: 41.44347982 | X26: 54.13025936 | Y26: 68.5086095 | Z26: 84.57853024 | AC26: 14.4 | AD26: 25.77648867 | AF26: 12.98519829 | AG26: 20.28937233 | AH26: 29.21669616 | AI26: 39.76716977 | AJ26: 51.94079318 | AK26: 65.73756636 | AL26: 81.15748934 | AN26: CH | AO26: =AO$12+$AR$4*SIN(RADIANS(H$13-H$16))*(COS(RADIANS(H$10))-1) -> 14 | AP26: =AP$12+$AR$4*SIN(RADIANS(I$13-I$16))*(COS(RADIANS(I$10))-1) -> 14.54952981 | AQ26: =AQ$12+$AR$4*SIN(RADIANS(J$13-J$16))*(COS(RADIANS(J$10))-1) -> 14.96824584 | AR26: =AR$12-$AR$4*SIN(RADIANS(H$13-H$16))*SIN(RADIANS(H$10)) -> 7 | AS26: =AS$12-$AR$4*SIN(RADIANS(I$13-I$16))*SIN(RADIANS(I$10)) -> 6.743750039 | AT26: =AT$12-$AR$4*SIN(RADIANS(J$13-J$16))*SIN(RADIANS(J$10)) -> 6.440983006 | AW26: 4.476417969 | AX26: 41.98121232 | AY26: 4.476417969 | AZ26: 42.96081446
Q27: 10.5 | R27: 18.22701114 | T27: 10.21157541 | U27: 15.95558658 | V27: 22.97604468 | W27: 31.27294971 | X27: 40.84630166 | Y27: 51.69610054 | Z27: 63.82234634 | AC27: 10.5 | AD27: 18.54747038 | AF27: 9.877488967 | AG27: 15.43357651 | AH27: 22.22435018 | AI27: 30.24980996 | AJ27: 39.50995587 | AK27: 50.0047879 | AL27: 61.73430605 | AN27: HL | AO27: =$AO$4 -> 14 | AP27: =$AO$4 -> 14 | AQ27: =$AO$4 -> 14 | AR27: =$AP$4 -> 7 | AS27: =$AP$4 -> 7 | AT27: =$AP$4 -> 7 | AW27: 3.280239459 | AX27: 30.37835191 | AY27: 3.280239459 | AZ27: 30.91245064
Q28: 6.6 | R28: 11.41584436 | T28: 6.538538172 | U28: 10.21646589 | V28: 14.71171089 | W28: 20.02427315 | X28: 26.15415269 | Y28: 33.10134949 | Z28: 40.86586357 | AC28: 6.6 | AD28: 11.54410332 | AF28: 6.396326151 | AG28: 9.994259612 | AH28: 14.39173384 | AI28: 19.58874884 | AJ28: 25.58530461 | AK28: 32.38140114 | AL28: 39.97703845 | AN28: TE | AO28: =AO$14+$AS$4*(COS(RADIANS(H$10))-1) -> 18.82962913 | AP28: =AP$14+$AS$4*(COS(RADIANS(I$10))-1) -> 18.53153894 | AQ28: =AQ$14+$AS$4*(COS(RADIANS(J$10))-1) -> 18.33012702 | AR28: =AR$14-$AS$4*SIN(RADIANS(H$10)) -> 5.705904774 | AS28: =AS$14-$AS$4*SIN(RADIANS(I$10)) -> 4.886908691 | AT28: =AT$14-$AS$4*SIN(RADIANS(J$10)) -> 4.5 | AW28: 2.068868709 | AX28: 19.02640726 | AY28: 2.068868709 | AZ28: 19.24017221
Q29: 2.7 | R29: 4.669008732 | T29: 2.691187561 | U29: 4.204980564 | V29: 6.055172011 | W29: 8.241761905 | X29: 10.76475024 | Y29: 13.62413703 | Z29: 16.81992225 | AC29: 2.7 | AD29: 4.690599066 | AF29: 2.666531282 | AG29: 4.166455127 | AH29: 5.999695383 | AI29: 8.16625205 | AJ29: 10.66612513 | AK29: 13.49931461 | AL29: 16.66582051 | AW29: 0.8479161128 | AX29: 7.781681219 | AY29: 0.8479161128 | AZ29: 7.81766511
P30: stalled servo: required torque exceeds available torque | AB30: stalled servo: required torque exceeds available torque
C37: Sample optimization of aileron control setup for minimum servo demand:
C38: 1 To limit total aileron servo throw to 120 degrees, enter the formula (=120-H7) in cell H8.
C39: 2 Use the spin button in cell H7 to vary aileron servo throw.
C40: 3 Watch cell H15 for maximum required aileron servo torque at maximum airspeed.
C41: 4 Choose the servo throw that minimizes the maximum required torque.
C42: (Note: The maximum required torque is the highest point of the red OR blue line in the graph.)

Sheet ServoPlus
C1: Point Here
B2: Input Data: | G2: Control Linkage Diagram (Click on the diagram to recenter the image.) | I2: Deflection vs. Stick Pos. (Click to toggle) | AI2: Torque, Force, and Deflection Data: | AQ2: Control Geometry Data:
B3: Xs | C3: 10 | D3: cm | AJ3: Stick | AK3: TEdef | AL3: Ac | AM3: Tc | AN3: Fp | AO3: Ts | AR3: Xo | AS3: Yo | AT3: X+ | AU3: Y+ | AV3: X- | AW3: Y- | AX3: X | AY3: Y
B4: Ys | C4: =N4/10-10 -> 0 | D4: cm | K4: Condense Axes | M4: fYs | N4: 100 | P4: X hl | Q4: 0 | S4: Stick | T4: As | U4: A | V4: B | W4: C | X4: Ac1 | Y4: Ac2 | Z4: Ac | AA4: TEdef | AB4: CSang | AC4: Asp | AD4: Acp | AE4: Tc | AF4: Fp | AG4: Ts | AK4: cm | AL4: deg | AM4: oz-in | AN4: lbf | AO4: oz-in | AQ4: SC | AR4: =$Q$6 -> 10 | AS4: =$Q$7 -> 0 | AT4: =$Q$6 -> 10 | AU4: =$Q$7 -> 0 | AV4: =$Q$6 -> 10 | AW4: =$Q$7 -> 0 | AX4: =$Q$6 -> 10 | AY4: =$Q$7 -> 0
B5: Xc | C5: =N5/10-10 -> 0.5 | D5: cm | K5: 1 | M5: fXc | N5: 105 | P5: Y hl | Q5: 0 | S5: =$C$20/100 -> -0.3 | T5: =$Q$21+IF($S5>0,$Q$22-$Q$21,$Q$21-$Q$23)*$S5 -> -1.281380227 | U5: =$Q$6+$Q$20*COS($T5)-$Q$4 -> 10.59421815 | V5: =$Q$7+$Q$20*SIN($T5)-$Q$5 -> -1.995513909 | W5: =(U5^2+V5^2+$Q$16^2-$Q$24^2)/(2*$Q$16) -> 2.318783793 | X5: =IF($W5+$U5=0,PI(),2*ATAN(($V5+SQRT($V5^2-$W5^2+$U5^2))/($W5+$U5))) -> 1.167834676 | Y5: =IF($W5+$U5=0,PI(),2*ATAN(($V5-SQRT($V5^2-$W5^2+$U5^2))/($W5+$U5))) -> -1.540189527 | Z5: =IF(AND(ROUND(SIN($X$6),3)=ROUND(SIN($Q$18),3),ROUND(COS($X$6),3)=ROUND(COS($Q$18),3)),X5,Y5) -> -1.540189527 | AA5: =$N$23*SIN($Z5-$Q$17+$N$17) -> -3.089692376 | AB5: =ASIN(SIN($N$20*($Z5-$Q$17+$N$17-$N$18))) -> -0.1725038539 | AC5: =ACOS(($Q$24^2+$Q$20^2-($Q$4+$Q$16*COS($Z5)-$Q$6)^2-($Q$5+$Q$16*SIN($Z5)-$Q$7)^2)/(2*$Q$20*$Q$24)) -> 1.427047256 | AD5: =ACOS(($Q$24^2+$Q$16^2-($Q$6+$Q$20*COS($T5)-$Q$4)^2-($Q$7+$Q$20*SIN($T5)-$Q$5)^2)/(2*$Q$16*$Q$24)) -> 1.455736097 | AE5: =0.0000085*$C$16^2*$C$17^2*$C$18*ABS(SIN(AB5)) -> 81.07198311 | AF5: =AE5/($Q$16*SIN(AD5)) -> 23.08324902 | AG5: =AF5*$Q$20*SIN(AC5) -> 47.56608704 | AI5: =IF($K$5>0,IF(S5<0,"-",IF(S5>0,"+","")),"") -> - | AJ5: =IF($K$5>0,ABS(S5),S5) -> 0.3 | AK5: =IF($K$5>0,ABS(AA5),AA5) -> 3.089692376 | AL5: =IF($K$5>0,ABS(DEGREES(ASIN(SIN($N$20*($Z5-$Q$17+$N$17))))),DEGREES(ASIN(SIN($N$20*($Z5-$Q$17+$N$17))))) -> 9.883742781 | AM5: =AE5 -> 81.07198311 | AN5: =AF5/16 -> 1.442703064 | AO5: =AG5 -> 47.56608704 | AQ5: SL | AR5: =$AR$4+$Q$20*COS($Q$21) -> 10.00299152 | AS5: =$AS$4+$Q$20*SIN($Q$21) -> -2.082105189 | AT5: =$AR$4+$Q$20*COS($Q$22) -> 8.296155141 | AU5: =$AS$4+$Q$20*SIN($Q$22) -> -1.196696981 | AV5: =$AR$4+$Q$20*COS($Q$23) -> 11.70727658 | AW5: =$AS$4+$Q$20*SIN($Q$23) -> -1.191795968 | AX5: =$Q$6+$Q$20*COS($T$5) -> 10.59421815 | AY5: =$Q$7+$Q$20*SIN($T$5) -> -1.995513909
B6: Yc | C6: =N6/10-10 -> -3.5 | D6: cm | M6: fYc | N6: 65 | P6: X sc | Q6: =Q4-$N$11 -> 10 | S6: 1 | T6: -2.529290642 | U6: 8.296155141 | V6: -1.196696981 | W6: -4.181119949 | X6: 1.949774108 | Y6: -2.236292157 | Z6: -2.236292157 | AA6: 9 | AB6: 0.5235987756 | AC6: 2.679348543 | AD6: 0.7552425959 | AE6: 236.1555 | AF6: 97.44455311 | AG6: 90.48039238 | AI6: + | AJ6: 1 | AK6: 9 | AL6: 30 | AM6: 236.1555 | AN6: 6.090284569 | AO6: 90.48039238 | AQ6: CL | AR6: =$Q$4+$Q$16*COS($Q$17) -> -0.5 | AS6: =$Q$5+$Q$16*SIN($Q$17) -> -3.5 | AT6: =$Q$4+$Q$16*COS($Q$18) -> -2.183012702 | AU6: =$Q$5+$Q$16*SIN($Q$18) -> -2.781088913 | AV6: =$Q$4+$Q$16*COS($Q$19) -> 1.316987298 | AW6: =$Q$5+$Q$16*SIN($Q$19) -> -3.281088913 | AX6: =Q$4+$Q$16*COS($Z$5) -> 0.1081944826 | AY6: =$Q$5+$Q$16*SIN(Z$5) -> -3.533878033
M7: fOc | N7: 90 | P7: Y sc | Q7: =Q5+C4 -> 0 | S7: 0.9 | T7: -2.433297533 | U7: 8.418697627 | V7: -1.354493918 | W7: -3.834517456 | X7: 1.877694036 | Y7: -2.196742125 | Z7: -2.196742125 | AA7: 8.376598726 | AB7: 0.4840487436 | AC7: 2.576330301 | AD7: 0.8018177605 | AE7: 219.7977623 | AF7: 86.51036487 | AG7: 96.48107495 | AI7: + | AJ7: 0.9 | AK7: 8.376598726 | AL7: 27.73395009 | AM7: 219.7977623 | AN7: 5.406897804 | AO7: 96.48107495 | AQ7: CB | AR7: =$Q$4+$N$12*COS($N$17) -> -0.5 | AS7: =$Q$5+$N$12*SIN($N$17) -> 0 | AT7: =$Q$4+$N$12*COS($N$17+$N$13) -> -0.4330127019 | AU7: =$Q$5+$N$12*SIN($N$17+$N$13) -> 0.25 | AV7: =$Q$4+$N$12*COS($N$17+$N$14) -> -0.4330127019 | AW7: =$Q$5+$N$12*SIN($N$17+$N$14) -> -0.25 | AX7: =$Q$4+$N$12*COS($N$17+$Z$5-$Q$17) -> -0.492579035 | AY7: =$Q$5+$N$12*SIN($N$17+$Z$5-$Q$17) -> -0.08582478824
B8: Rs+ | C8: 55 | D8: deg | M8: fAoA | N8: 20 | S8: 0.8 | T8: -2.337304424 | U8: 8.555800119 | V8: -1.499819212 | W8: -3.446733051 | X8: 1.805291994 | Y8: -2.152362622 | Z8: -2.152362622 | AA8: 7.661523366 | AB8: 0.439669241 | AC8: 2.474976867 | AD8: 0.8515575888 | AE8: 201.0345424 | AF8: 75.58233448 | AG8: 97.30689296 | AI8: + | AJ8: 0.8 | AK8: 7.661523366 | AL8: 25.19119189 | AM8: 201.0345424 | AN8: 4.723895905 | AO8: 97.30689296 | AQ8: LE | AR8: =$Q$4-1*$N$23 -> 18 | AS8: =$Q$5 -> 0 | AT8: =$Q$4-1*$N$23 -> 18 | AU8: =$Q$5 -> 0 | AV8: =$Q$4-1*$N$23 -> 18 | AW8: =$Q$5 -> 0 | AX8: =$Q$4-1*$N$23 -> 18 | AY8: =$Q$5 -> 0
B9: Rs- | C9: 55 | D9: deg | M9: fStick | N9: 70 | P9: K+ | Q9: =(AR$4-AR$6)^2-(AR$4-AT$6)^2+(AS$4-AS$6)^2-(AS$4-AU$6)^2 -> -33.66025404 | S9: 0.7 | T9: -2.241311315 | U9: 8.706200229 | V9: -1.631334767 | W9: -3.021337298 | X9: 1.73365114 | Y9: -2.104107855 | Z9: -2.104107855 | AA9: 6.866933296 | AB9: 0.3914144741 | AC9: 2.375053487 | AD9: 0.9037426265 | AE9: 180.1848962 | AF9: 64.86873651 | AG9: 93.6864443 | AI9: + | AJ9: 0.7 | AK9: 6.866933296 | AL9: 22.4263974 | AM9: 180.1848962 | AN9: 4.054296032 | AO9: 93.6864443 | AQ9: HL | AR9: =$Q$4 -> 0 | AS9: =$Q$5 -> 0 | AT9: =$Q$4 -> 0 | AU9: =$Q$5 -> 0 | AV9: =$Q$4 -> 0 | AW9: =$Q$5 -> 0 | AX9: =$Q$4 -> 0 | AY9: =$Q$5 -> 0
B10: Rc+ | C10: 30 | D10: deg | K10: Unit | P10: K- | Q10: =(AR$4-AR$6)^2-(AR$4-AV$6)^2+(AS$4-AS$6)^2-(AS$4-AW$6)^2 -> 36.33974596 | S10: 0.6 | T10: -2.145318206 | U10: 8.868513135 | V10: -1.747829638 | W10: -2.562247073 | X10: 1.66361026 | Y10: -2.052787863 | Z10: -2.052787863 | AA10: 6.004370939 | AB10: 0.3400944813 | AC10: 2.276366549 | AD10: 0.9577564485 | AE10: 157.5516913 | AF10: 54.48367272 | AG10: 86.35593237 | AI10: + | AJ10: 0.6 | AK10: 6.004370939 | AL10: 19.48597841 | AM10: 157.5516913 | AN10: 3.405229545 | AO10: 86.35593237 | AQ10: TE | AR10: =$Q$4+$N$23*COS($N$17) -> -18 | AS10: =$Q$5+$N$23*SIN($N$17) -> 0 | AT10: =$Q$4+$N$23*COS($N$17+$N$13) -> -15.58845727 | AU10: =$Q$5+$N$23*SIN($N$17+$N$13) -> 9 | AV10: =$Q$4+$N$23*COS($N$17+$N$14) -> -15.58845727 | AW10: =$Q$5+$N$23*SIN($N$17+$N$14) -> -9 | AX10: =$Q$4+$N$23*COS($N$17+$Z$5-$Q$17) -> -17.73284526 | AY10: =$Q$5+$N$23*SIN($N$17+$Z$5-$Q$17) -> -3.089692376
B11: Rc- | C11: 30 | D11: deg | K11: =IF($K$5>0,0.25,0.5) -> 0.25 | M11: Xs | N11: =$N$20*C3 -> -10 | P11: A | Q11: =Q$9*((AS$4-AW$6)*COS(N$16)-(AR$4-AV$6)*SIN(N$16)-(AS$4-AS$6))+Q$10*((AR$4-AT$6)*SIN(N$15)-(AS$4-AU$6)*COS(N$15)+(AS$4-AS$6)) -> 0.4392781918 | S11: 0.5 | T11: -2.049325098 | U11: 9.041244323 | V11: -1.848231187 | W11: -2.073689495 | X11: 1.595799473 | Y11: -1.999087574 | Z11: -1.999087574 | AA11: 5.084912349 | AB11: 0.2863941923 | AC11: 2.178760317 | AD11: 1.01306986 | AE11: 133.4255576 | AF11: 44.47872662 | AG11: 76.01503817 | AI11: + | AJ11: 0.5 | AK11: 5.084912349 | AL11: 16.4091785 | AM11: 133.4255576 | AN11: 2.779920414 | AO11: 76.01503817 | AQ11: Max | AR11: =IF($AV$12>1,AX11*$AV$12,AX11)+SIGN(AX11)*AW12 -> 20 | AS11: =IF($AV$12<1,AY11/$AV$12,AY11)+SIGN(AY11) -> 10 | AT11: Stuff: | AV11: =AX11-AX12 -> 36 | AW11: =AY11-AY12 -> 18 | AX11: =MAX(AR4:AR10,AT4:AT10,AV4:AV10,AX4:AX10) -> 18 | AY11: =MAX(AS4:AS10,AU4:AU10,AW4:AW10,AY4:AY10) -> 9
M12: Xc | N12: =$N$20*C5 -> -0.5 | P12: B | Q12: =Q$9*(-(AS$4-AW$6)*SIN(N$16)-(AR$4-AV$6)*COS(N$16)+(AR$4-AR$6))+Q$10*((AR$4-AT$6)*COS(N$15)+(AS$4-AU$6)*SIN(N$15)-(AR$4-AR$6)) -> -305.7391298 | S12: 0.4 | T12: -1.953331989 | U12: 9.222803353 | V12: -1.931614956 | W12: -1.560163011 | X12: 1.530678698 | Y12: -1.943588407 | Z12: -1.943588407 | AA12: 4.119279986 | AB12: 0.2308950252 | AC12: 2.082112183 | AD12: 1.069224052 | AE12: 108.0878472 | AF12: 34.86643986 | AG12: 63.31078431 | AI12: + | AJ12: 0.4 | AK12: 4.119279986 | AL12: 13.22931046 | AM12: 108.0878472 | AN12: 2.179152491 | AO12: 63.31078431 | AQ12: Min | AR12: =IF($AV$12>1,AX12*$AV$12,AX12)+SIGN(AX12)*AW12 -> -20 | AS12: =IF($AV$12<1,AY12/$AV$12,AY12)+SIGN(AY12) -> -10 | AV12: =$AW$12/($AV$11/$AW$11) -> 1 | AW12: 2 | AX12: =MIN(AR5:AR10,AT5:AT10,AV5:AV10,AX5:AX10) -> -18 | AY12: =MIN(AS5:AS10,AU5:AU10,AW5:AW10,AY5:AY10) -> -9
B13: Oc | C13: =N7-90 -> 0 | D13: deg | K13: Stickmin | M13: Rc+ | N13: =$N$20*RADIANS(C10) -> -0.5235987756 | P13: Aro | Q13: =IF(AS$6-AS$4>=0,ACOS((AR$6-AR$4)/SQRT((AR$6-AR$4)^2+(AS$6-AS$4)^2)),-ACOS((AR$6-AR$4)/SQRT((AR$6-AR$4)^2+(AS$6-AS$4)^2))) -> -2.819842099 | S13: 0.3 | T13: -1.85733888 | U13: 9.411518501 | V13: -1.997213182 | W13: -1.026395966 | X13: 1.468574129 | Y13: -1.886788892 | Z13: -1.886788892 | AA13: 3.117913056 | AB13: 0.1740955108 | AC13: 1.986327756 | AD13: 1.125814885 | AE13: 81.81247962 | AF13: 25.63658922 | AG13: 48.83575435 | AI13: + | AJ13: 0.3 | AK13: 3.117913056 | AL13: 9.974938001 | AM13: 81.81247962 | AN13: 1.602286826 | AO13: 48.83575435 | AQ13: Pull-Pull Analysis (click plot to toggle between slack and "play")
B14: AoA | C14: =N8-20 -> 0 | D14: deg | K14: =IF($K$5>0,0,-1) -> 0 | M14: Rc- | N14: =-$N$20*RADIANS(C11) -> 0.5235987756 | P14: Aho | Q14: =IF(AS$9-AS$4>=0,ACOS((AR$9-AR$4)/SQRT((AR$9-AR$4)^2+(AS$9-AS$4)^2)),-ACOS((AR$9-AR$4)/SQRT((AR$9-AR$4)^2+(AS$9-AS$4)^2))) -> 3.141592654 | S14: 0.2 | T14: -1.761345771 | U14: 9.605652154 | V14: -2.04442186 | W14: -0.477303078 | X14: 1.409710512 | Y14: -1.829122882 | Z14: -1.829122882 | AA14: 2.090999317 | AB14: 0.1164295002 | AC14: 1.891336417 | AD14: 1.182479126 | AE14: 54.86677657 | AF14: 16.76701346 | AG14: 33.13255761 | AI14: + | AJ14: 0.2 | AK14: 2.090999317 | AL14: 6.670918972 | AM14: 54.86677657 | AN14: 1.047938341 | AO14: 33.13255761 | AQ14: Stick | AR14: DAc | AS14: slack
B15: S rev | M15: Rs+ | N15: =$N$20*$N$22*RADIANS(C8) -> -0.9599310886 | P15: atan(B/A) | Q15: =IF(Q$11=0,PI()/2,ATAN(Q$12/Q$11)) -> -1.569359553 | S15: 0.1 | T15: -1.665352662 | U15: 9.803416805 | V15: -2.072806314 | W15: 0.082059825 | X15: 1.354238534 | Y15: -1.770974984 | Z15: -1.770974984 | AA15: 1.048475041 | AB15: 0.05828160239 | AC15: 1.797087547 | AD15: 1.238882785 | AE15: 27.51146083 | AF15: 8.230640079 | AG15: 16.70017004 | AI15: + | AJ15: 0.1 | AK15: 1.048475041 | AL15: 3.33928984 | AM15: 27.51146083 | AN15: 0.5144150049 | AO15: 16.70017004 | AR15: deg | AS15: mm
B16: Vmax | C16: 70 | D16: mph | K16: Stickmax | M16: Rs- | N16: =-$N$20*$N$22*RADIANS(C9) -> 0.9599310886 | P16: Lc | Q16: =SQRT(N$12^2+C$6^2) -> 3.535533906 | S16: 0 | T16: -1.569359553 | U16: 10.00299152 | V16: -2.082105189 | W16: 0.646542351 | X16: 1.302257383 | Y16: -1.712693381 | Z16: -1.712693381 | AA16: 1.157667712e-14 | AB16: 6.431487287e-16 | AC16: 1.703547436 | AD16: 1.29471139 | AE16: 3.037662192e-13 | AF16: 8.929984474e-14 | AG16: 1.842959413e-13 | AJ16: 0 | AK16: 1.157667712e-14 | AL16: 3.684970775e-14 | AM16: 3.037662192e-13 | AN16: 5.581240296e-15 | AO16: 1.842959413e-13 | AQ16: 0 | AR16: =SIGN($AC$6-$AC$26)*(ABS(OFFSET($AL$16,-AQ16*10,0))-ABS(OFFSET($AL$16,AQ16*10,0))) -> 0 | AS16: =RADIANS(AR16)*$Q$16*10*MAX(ABS(SIN(OFFSET($AC$16,AQ16*10,0))),ABS(SIN(OFFSET($AC$16,-AQ16*10,0)))) -> 0
B17: Cavg | C17: 18 | D17: cm | H17: Click any plot below to toggle +/- axis overlap. | K17: 1 | M17: Oc | N17: =RADIANS($N$20*C$13) -> 0 | P17: Aco | Q17: =IF(N$12=0,SIGN(C$6)*PI()/2,IF(SIGN(N$12)>0,ATAN(C$6/N$12),ATAN(C$6/N$12)+PI()))+N$17 -> 4.570491926 | S17: -0.1 | T17: -1.473366444 | U17: 10.20253868 | V17: -2.072232866 | W17: 1.210946969 | X17: 1.253832957 | Y17: -1.654600356 | Z17: -1.654600356 | AA17: -1.045086402 | AB17: -0.05809302555 | AC17: 1.610696795 | AD17: 1.349661947 | AE17: 27.42254465 | AF17: 7.949851632 | AG17: 16.53927003 | AI17: - | AJ17: 0.1 | AK17: 1.045086402 | AL17: 3.328485183 | AM17: 27.42254465 | AN17: 0.496865727 | AO17: 16.53927003 | AQ17: 0.1 | AR17: =SIGN($AC$6-$AC$26)*(ABS(OFFSET($AL$16,-AQ17*10,0))-ABS(OFFSET($AL$16,AQ17*10,0))) -> 0.01080465708 | AS17: 0.006661891597
B18: Lavg | C18: 35 | D18: cm | G18: Req'd Servo Torque (oz-in) vs. Deflection | H18: Pushrod Force (lbf) vs. Deflection | I18: Control Horn Torque (oz-in) vs. Deflection | M18: AoA | N18: =RADIANS($C$14)*$N$20 -> 0 | P18: Ac+ | Q18: =Q$17+N$13 -> 4.04689315 | S18: -0.2 | T18: -1.377373336 | U18: 10.40022095 | V18: -2.043280244 | W18: 1.770076865 | X18: 1.209012274 | Y18: -1.597000873 | Z18: -1.597000873 | AA18: -2.07782271 | AB18: -0.1156925084 | AC18: 1.518528761 | AD18: 1.403436356 | AE18: 54.52102901 | AF18: 15.63938963 | AG18: 32.51841878 | AI18: - | AJ18: 0.2 | AK18: 2.07782271 | AL18: 6.628692451 | AM18: 54.52102901 | AN18: 0.9774618518 | AO18: 32.51841878 | AQ18: 0.2 | AR18: 0.04222652123 | AS18: 0.02602101204
M19: A flip | N19: TRUE | P19: Ac- | Q19: =Q$17+N$14 -> 5.094090701 | S19: -0.3 | T19: -1.281380227 | U19: 10.59421815 | V19: -1.995513909 | W19: 2.318783793 | X19: 1.167834676 | Y19: -1.540189527 | Z19: -1.540189527 | AA19: -3.089692376 | AB19: -0.1725038539 | AC19: 1.427047256 | AD19: 1.455736097 | AE19: 81.07198311 | AF19: 23.08324902 | AG19: 47.56608704 | AI19: - | AJ19: 0.3 | AK19: 3.089692376 | AL19: 9.883742781 | AM19: 81.07198311 | AN19: 1.442703064 | AO19: 47.56608704 | AQ19: 0.3 | AR19: 0.09119522018 | AS19: 0.0556931555
B20: Stick | C20: =N9-100 -> -30 | D20: % | M20: A flip | N20: =IF(N$19,-1,1) -> -1 | P20: Ls | Q20: =Q10/(2*(($AR$4-$AV$6)*COS(Q23)-($AR$4-$AR$6)*COS($Q$21)+($AS$4-$AW$6)*SIN(Q23)-($AS$4-$AS$6)*SIN($Q$21))) -> 2.082107338 | S20: -0.4 | T20: -1.185387118 | U20: 10.78274402 | V20: -1.929373673 | W20: 2.852015476 | X20: 1.130340303 | Y20: -1.48445606 | Z20: -1.48445606 | AA20: -4.072696366 | AB20: -0.2282373213 | AC20: 1.336265594 | AD20: 1.506258117 | AE20: 106.8655163 | AF20: 30.28919058 | AG20: 61.33883751 | AI20: - | AJ20: 0.4 | AK20: 4.072696366 | AL20: 13.07703524 | AM20: 106.8655163 | AN20: 1.893074411 | AO20: 61.33883751 | AQ20: 0.4 | AR20: 0.1522752213 | AS20: 0.09139161924
B21: Ac | C21: =DEGREES(ASIN(SIN($N$20*($Z5-$Q$17+$N$17)))) -> -9.883742781 | D21: deg | M21: S rev | N21: FALSE | P21: Aso | Q21: =IF(SIGN(ASIN(SIN($Q$14-$Q$13)))*N$22*SIGN(ASIN(SIN(Q$15-Q$13)))>0,Q$15-SIGN(ASIN(SIN($Q$14-$Q$13)))*N$22*PI(),Q$15) -> -1.569359553 | S21: -0.5 | T21: -1.089394009 | U21: 10.96406269 | V21: -1.84546853 | W21: 3.364862131 | X21: 1.096576232 | Y21: -1.430089575 | Z21: -1.430089575 | AA21: -5.019428005 | AB21: -0.2826038066 | AC21: 1.246205201 | AD21: 1.554691886 | AE21: 131.7072811 | AF21: 37.25727594 | AG21: 73.52284518 | AI21: - | AJ21: 0.5 | AK21: 5.019428005 | AL21: 16.19200539 | AM21: 131.7072811 | AN21: 2.328579746 | AO21: 73.52284518 | AQ21: 0.5 | AR21: 0.2171731048 | AS21: 0.1270125122
M22: S rev | N22: =IF(N$21,-1,1) -> 1 | P22: As+ | Q22: =Q$21+N15 -> -2.529290642 | S22: -0.6 | T22: -0.9934009001 | U22: 11.13650466 | V22: -1.744571045 | W22: 3.852601666 | X22: 1.06660053 | Y22: -1.37738149 | Z22: -1.37738149 | AA22: -5.923146739 | AB22: -0.3353118918 | AC22: 1.156894328 | AD22: 1.600717736 | AE22: 155.4204089 | AF22: 43.97921564 | AG22: 83.83718351 | AI22: - | AJ22: 0.6 | AK22: 5.923146739 | AL22: 19.21195622 | AM22: 155.4204089 | AN22: 2.748700977 | AO22: 83.83718351 | AQ22: 0.6 | AR22: 0.2740221899 | AS22: 0.1548118471
M23: C | N23: =$N$20*$C$17 -> -18 | P23: As- | Q23: =Q$21+N16 -> -0.6094284647 | S23: -0.7 | T23: -0.8974077912 | U23: 11.29848214 | V23: -1.627610242 | W23: 4.310743172 | X23: 1.040484387 | Y23: -1.326627185 | Z23: -1.326627185 | AA23: -6.777847305 | AB23: -0.3860661966 | AC23: 1.068366642 | AD23: 1.644006618 | AE23: 177.8473243 | AF23: 50.43792652 | AG23: 92.0386417 | AI23: - | AJ23: 0.7 | AK23: 6.777847305 | AL23: 22.11996368 | AM23: 177.8473243 | AN23: 3.152370407 | AO23: 92.0386417 | AQ23: 0.7 | AR23: 0.3064337239 | AS23: 0.1657214766
B24: Output Data: | P24: Lp | Q24: =SQRT(($AR$5-$AR$6)^2+($AS$5-$AS$6)^2) -> 10.59826667 | S24: -0.8 | T24: -0.8014146824 | U24: 11.44850371 | V24: -1.49566305 | W24: 4.735068262 | X24: 1.018312375 | Y24: -1.27812625 | Z24: -1.27812625 | AA24: -7.578320513 | AB24: -0.4345671313 | AC24: 0.9806595817 | AD24: 1.684221504 | AE24: 198.8513411 | AF24: 56.60739722 | AG24: 97.92792512 | AI24: - | AJ24: 0.8 | AK24: 7.578320513 | AL24: 24.89886254 | AM24: 198.8513411 | AN24: 3.537962326 | AO24: 97.92792512 | AQ24: 0.8 | AR24: 0.2923293497 | AS24: 0.1498770188
B25: Ts max | C25: =MAX(AG5:AG26) -> 102.2365607 | D25: oz-in | S25: -0.9 | T25: -0.7054215735 | U25: 11.58518804 | V25: -1.349944385 | W25: 5.121669919 | X25: 1.000180834 | Y25: -1.232181208 | Z25: -1.232181208 | AA25: -8.320201385 | AB25: -0.4805121735 | AC25: 0.8938123566 | AD25: 1.721020663 | AE25: 218.3179242 | AF25: 62.4530091 | AG25: 101.3569323 | AI25: - | AJ25: 0.9 | AK25: 8.320201385 | AL25: 27.53131955 | AM25: 218.3179242 | AN25: 3.903313069 | AO25: 101.3569323 | AQ25: 0.9 | AR25: 0.2026305363 | AS25: 0.09746175833
B26: Tc max | C26: =MAX(AE5:AE26) -> 236.1555 | D26: oz-in | S26: -1 | T26: -0.6094284647 | U26: 11.70727658 | V26: -1.191795968 | W26: 5.466988469 | X26: 0.9861943929 | Y26: -1.189094606 | Z26: -1.189094606 | AA26: -9 | AB26: -0.5235987756 | AC26: 0.8078635258 | AD26: 1.754062987 | AE26: 236.1555 | AF26: 67.93248569 | AG26: 102.2365607 | AI26: - | AJ26: 1 | AK26: 9 | AL26: 30 | AM26: 236.1555 | AN26: 4.245780356 | AO26: 102.2365607 | AQ26: 1 | AR26: 1.776356839e-14 | AS26: 7.922973386e-15
B27: Fp max | C27: =MAX(AF5:AF26)/16 -> 6.090284569 | D27: lbf
AP28: Requires: Equal +/- servo throw (Rs+ = Rs-) and servo on centerline (Ys = 0)
B29: Aspo | C29: =DEGREES(ACOS(($Q$24^2+$Q$20^2-($Q$4+$Q$16*COS($Q17)-$Q$6)^2-($Q$5+$Q$16*SIN($Q17)-$Q$7)^2)/(2*$Q$20*$Q$24))) -> 97.60607826 | D29: deg | AP29: Assumed: Pull cables are equal length and connected to either side of servo wheel or arm.
B30: Asco | C30: =ABS(DEGREES(ASIN(SIN($Q$21)))) -> 89.91767894 | D30: deg | AP30: Positive values indicate slack. Negative values indicate binding.
B31: Ls | C31: =$Q$20 -> 2.082107338 | D31: cm | AP31: Offset at either the servo or control horn may be required to eliminate binding.
B32: Lp | C32: =$Q$24 -> 10.59826667 | D32: cm | AP32: Asco = 90 degrees (see Output Data) corresponds to zero servo offset (i.e. straight arms).
G33: Note: You can make copies of this worksheet in this workbook for use with different control surfaces.

Sheet PropStuff
B2: Theoretical max level flight speed based on prop pitch and rpm (and prop tip speed thrown in, too)
B4: Diameter (in) | C4: Pitch (in) | D4: RPM | E4: Max airspeed (mph) | F4: Prop tip speed (Mach) | H4: T= | I4: 65 | J4: F
B5: 15 | C5: 10 | D5: 9000 | E5: =C5*D5*60/(12*5280) -> 85.22727273 | F5: =B5*PI()*D5*2.54/(100*60)*SQRT(0.0286/($I$6*8.314*$I$5)) -> 0.5212826043 | H5: T= | I5: =IF(J4="F",(I4-32)*5/9+273.15,I4+273.15) -> 291.4833333 | J5: K
B6: 16 | C6: 8 | D6: 9000 | E6: =C6*D6*60/(12*5280) -> 68.18181818 | F6: =B6*PI()*D6*2.54/(100*60)*SQRT(0.0286/($I$6*8.314*$I$5)) -> 0.556034778 | H6: Cp/Cv= | I6: 1.4
B7: 18 | C7: 6 | D7: 9000 | E7: =C7*D7*60/(12*5280) -> 51.13636364 | F7: =B7*PI()*D7*2.54/(100*60)*SQRT(0.0286/($I$6*8.314*$I$5)) -> 0.6255391252
B8: 10 | C8: 6 | D8: 15000 | E8: =C8*D8*60/(12*5280) -> 85.22727273 | F8: =B8*PI()*D8*2.54/(100*60)*SQRT(0.0286/($I$6*8.314*$I$5)) -> 0.5792028937 | H8: High prop tip speeds make for noisy airplanes.
B9: 11 | C9: 7 | D9: 12300 | E9: =C9*D9*60/(12*5280) -> 81.53409091 | F9: =B9*PI()*D9*2.54/(100*60)*SQRT(0.0286/($I$6*8.314*$I$5)) -> 0.5224410101 | H9: ("High" seems to be very roughly Mach 0.6+.)
B11: The results are coarse, to say the least, but it's better than a blind guess. | H11: Assuming ideal gas behavior:
B12: Drag, airfoils, and gravity are ignored (realistic, eh?). | H12: speed of sound = sqrt[(R T Cp) / (M Cv)]
H14: Cp/Cv for air from Perry's ChE's Handbook
H15: M ~ 28.6 g/mol for dry air

Sheet RCCD_All_Star
A1: All Star Size Inches
B2: Ailerons | C2: Elevators | D2: Rudder
A3: Cord | B3: 1.75 | C3: 2.5 | D3: 3
A4: Length | B4: 33 | C4: 22 | D4: 10
